Workbook

Sheet XXXXX (hidden)

Sheet OP PLAN
KU1: ` | KW1: ` | KY1: ` | LA1: ` | LC1: `
A2: 2017-08-14 | B2: Program # 847-4 Plant Operating Plan Weekly Summary | AP2: =A2 -> 2017-08-14 | AS2: =B2 -> Program # 847-4 Plant Operating Plan Weekly Summary
D4: Customer Orders Scheduled
D5: for Production | M5: Volumes Committed to Sales and Dealers
D6: C | J6: C | M6: UC | P6: M | AB6: C | AN6: U | AV6: U M | BK6: U M C | BN6: U M C | BT6: U
D7: 08/14 | G7: 08/21 | J7: 08/28 | M7: 09/04 | P7: 09/11 | S7: 09/18 | V7: 09/25 | Y7: 10/02 | AB7: 10/09 | AE7: 10/16 | AH7: 10/23 | AK7: 10/30 | AN7: 11/06 | AS7: 11/13 | AV7: 11/20 | AY7: 11/27 | BB7: 12/04 | BE7: 12/11 | BH7: 12/18 | BK7: 12/25 | BN7: 01/01 | BQ7: 01/08 | BT7: 01/15 | BW7: 01/22 | BZ7: 01/29
A8: U.S. / Canada / Mexico | B8: JPH | D8: M-F | E8: Sa/Su | G8: M-F | H8: Sa/Su | J8: M-F | K8: Sa/Su | M8: M-F | N8: Sa/Su | P8: M-F | Q8: Sa/Su | S8: M-F | T8: Sa/Su | V8: M-F | W8: Sa/Su | Y8: M-F | Z8: Sa/Su | AB8: M-F | AC8: Sa/Su | AE8: M-F | AF8: Sa/Su | AH8: M-F | AI8: Sa/Su | AK8: M-F | AL8: Sa/Su | AN8: M-F | AO8: Sa/Su | AP8: U.S./Canada/Mexico | AQ8: JPH | AS8: M-F | AT8: Sa/Su | AV8: M-F | AW8: Sa/Su | AY8: M-F | AZ8: Sa/Su | BB8: M-F | BC8: Sa/Su | BE8: M-F | BF8: Sa/Su | BH8: M-F | BI8: Sa/Su | BK8: M-F | BL8: Sa/Su | BN8: M-F | BO8: Sa/Su | BQ8: M-F | BR8: Sa/Su | BT8: M-F | BU8: Sa/Su | BW8: M-F | BX8: Sa/Su | BZ8: M-F | CA8: Sa/Su
A11: Fiesta - Cuautitlan | B11: 35 | D11: DW | G11: 44 | J11: 45 | M11: 45 | P11: 45 | S11: DW | V11: 44 | Y11: 45 | AB11: 45 | AE11: DW | AH11: 45 | AK11: 45 | AN11: DW | AP11: =A11 -> Fiesta - Cuautitlan | AQ11: 35.0 | AS11: 45 | AV11: 36 | AY11: 45 | BB11: 45 | BE11: 45 | BH11: 45 | BK11: HOL | BN11: 27 | BO11: 9 | BQ11: 45 | BT11: 45 | BU11: 9 | BW11: 45 | BZ11: 45 | CA11: 9
A12: Matl. Prot. (1S) | AP12: Matl. Prot. (1S) | BB12: D) | BE12: G)
A13: Vehicle Schedule @ MPW | AP13: Vehicle Schedule @ MPW | BT13: Fiesta
A14: Fusion / MKZ - Hermosillo | B14: 63.0 | D14: 105 | G14: 89 | J14: 89 | M14: 85 | P14: 68 | S14: D/W | V14: 83 | Y14: 85 | AB14: 84 | AE14: 85 | AH14: 84 | AK14: DW | AN14: 84 | AP14: Fusion / MKZ - Hermosillo | AQ14: 63.0 | AS14: 85 | AV14: 67 | AY14: 85 | BB14: 85 | BE14: 85 | BH14: 50 | BK14: HOL | BN14: 83 | BO14: 21 | BQ14: 107 | BR14: 13 | BT14: 68 | BW14: 107 | BX14: 19 | BZ14: DW
A15: Matl. Prot. (3S) | M15: G/ B) Fusion | AP15: Matl. Prot. (3S) | AS15: 21 | AV15: 21 | AY15: 17 | BB15: 21 | BE15: 21 | BH15: 13
A16: Vehicle Schedule @ MPW | M16: M / E) MKZ | AP16: Vehicle Schedule @ MPW
A17: Exp / Nav / Superduty - Kentucky | B17: 80.75 | D17: 96 | E17: 19 | G17: 96 | H17: 19 | J17: 97 | K17: 19 | M17: 77 | N17: 19 | P17: 97 | Q17: 19 | S17: 96 | T17: 19 | V17: 96 | W17: 19 | Y17: 96 | Z17: 19 | AB17: 97 | AC17: 19 | AE17: 96 | AF17: 19 | AH17: 96 | AI17: 19 | AK17: 97 | AL17: 19 | AN17: 77 | AO17: 19 | AP17: =A17 -> Exp / Nav / Superduty - Kentucky | AQ17: 80.75 | AS17: 96 | AT17: 19 | AV17: 57 | AW17: 19 | AY17: 97 | AZ17: 19 | BB17: 96 | BC17: 19 | BD17: 19 | BE17: 97 | BF17: 19 | BH17: 96 | BI17: 10 | BK17: HOL | BN17: 75 | BO17: 19 | BQ17: 97 | BR17: 19 | BT17: 77 | BU17: 19 | BW17: 96 | BX17: 19 | BZ17: 97 | CA17: 19
A18: Matl. Prot. (3C) | V18: E) Exp/Nav | Y18: F) SD | AP18: Matl. Prot. (3C) | AT18: M) S/Duty | AV18: E) S/Duty
A19: Vehicle Schedule @ MPW | G19: Super Duty | S19: Super Duty | AP19: Vehicle Schedule @ MPW | BH19: Exp. | BN19: Exp. | BQ19: Exp. | BW19: Exp. | BZ19: Exp.
A20: Escape / MKC - Louisville | B20: 71.74 | D20: 103 | E20: 30 | G20: 103 | H20: 21 | J20: 31/72 | K20: 21 | M20: 82 | N20: 21 | P20: 103 | Q20: 21 | S20: 103 | T20: 31 | V20: 103 | W20: 21 | Y20: 103 | Z20: 31 | AB20: 103 | AC20: 21 | AE20: 103 | AF20: 31 | AH20: 103 | AI20: 21 | AK20: 103 | AL20: 21 | AN20: 92 | AO20: 21 | AP20: Escape / MKC - Louisville | AQ20: 71.74 | AS20: 103 | AT20: 21 | AV20: 61 | AW20: 21 | AY20: 103 | AZ20: 21 | BB20: 103 | BC20: 21 | BE20: 103 | BF20: 21 | BH20: 101 | BI20: 10 | BK20: HOL | BN20: 81 | BO20: 31 | BQ20: 103 | BR20: 31 | BT20: 82 | BU20: 21 | BW20: 103 | BX20: 31 | BZ20: 103 | CA20: 31
A21: Matl. Prot. (3C) | J21: M) E) Esc/MKC | AC21: 31 | AI21: 31 | AL21: 31 | AP21: Matl. Prot. (3C) | AT21: 31 | AZ21: 31 | BC21: 31 | BF21: 31
A22: Vehicle Schedule @ MPW | D22: Esc | S22: Esc | Y22: Esc | AB22: MKC/Esc | AE22: Esc | AH22: MKC/Esc | AK22: MKC/Esc | AP22: Vehicle Schedule @ MPW | AS22: Esc | AY22: MKC/Esc | BB22: MKC/Esc | BE22: MKC/Esc | BQ22: MKC/Esc | BW22: MKC/Esc
A23: E-Series / Med Duty / Super Duty - Ohio | B23: 36.0 | D23: 40 | G23: 40 | J23: 40 | M23: 40 | N23: 8 | P23: 50 | Q23: 8 | S23: 50 | V23: 40 | Y23: 40 | AB23: 40 | AE23: 40 | AH23: 40 | AK23: 50 | AN23: 40 | AP23: E-Series / Med Duty / Super Duty - Ohio | AQ23: 36.0 | AS23: 50 | AV23: 30 | AY23: 40 | BB23: 40 | BC23: 8 | BE23: 40 | BH23: 40 | BK23: HOL | BN23: 40 | BO23: 8 | BQ23: 50 | BR23: 8 | BT23: 40 | BW23: 50 | BZ23: 50 | CA23: 8
A24: Matl. Prot. 1S (4x10) | V24: M) Econ/MT | Y24: E) Econ/MT | AH24: F) SD | AP24: Matl. Prot. 1S (4x10) | AW24: M) S/Duty | AY24: E) S/Duty | BB24: 50 | BE24: 50 | BF24: 8
A25: Vehicle Schedule @ MPW | B25: A) | P25: E-Series | S25: E-Series | AK25: E-Series | AP25: Vehicle Schedule @ MPW | AS25: E-Series | BB25: E-Series | BE25: E-Series | BQ25: E-Series | BW25: E-Series | BZ25: E-Series
A26: Mustang/Conti - Flat Rock | B26: 50.0 | D26: 39 | G26: 40 | J26: 40 | M26: 29 | P26: 40 | S26: 39 | V26: DW | Y26: 79 | AB26: 80 | AE26: 79 | AH26: 79 | AK26: DW | AN26: 79 | AP26: =A26 -> Mustang/Conti - Flat Rock | AQ26: 50.0 | AS26: 79 | AV26: 60 | AY26: 80 | BB26: 79 | BE26: 80 | BH26: 79 | BK26: HOL | BN26: 58 | BQ26: 80 | BT26: 59 | BW26: 80 | BZ26: DW
A27: Matl. Prot. (2S) | C27: u | D27: M) Continental | G27: E) Continental | V27: M) Mustang | Y27: I) E) Mustang | AP27: Matl. Prot. (2S) | BB27: B) Mustang
A28: Vehicle Schedule @ MPW | AP28: =A28 -> Vehicle Schedule @ MPW
A29: Focus / C-Max - Michigan (4x10) | B29: 60.5 | D29: 80 | G29: D/W | J29: 80 | M29: 60 | P29: D/W | S29: 80 | V29: 80 | Y29: 80 | AB29: 80 | AE29: 80 | AH29: 80 | AK29: D/W | AN29: 80 | AP29: =A29 -> Focus / C-Max - Michigan (4x10) | AQ29: 60.5 | AS29: 80 | AV29: 60 | AY29: 100 | BB29: 80 | BE29: 80 | BH29: D/W | BK29: HOL | BN29: FAC | BQ29: FAC | BT29: 78 | BU29: 16 | BW29: 100 | BX29: 16 | BZ29: 100
A30: Matl. Prot. (2S) | Y30: M) Foc/C-Max | AB30: E) Foc/C-Max | AP30: =A30 -> Matl. Prot. (2S)
A31: Vehicle Schedule @ MPW | Y31: C-Max | AP31: =A31 -> Vehicle Schedule @ MPW
A32: Edge / MKX / Flex /MKT- Oakville | B32: 66.0 | D32: 81 | G32: 80 | J32: 64 | M32: 64 | P32: 80 | S32: 80 | V32: 43 / 37 | Y32: 80 | AB32: 64 | AE32: 80 | AH32: 80 | AK32: 80 | AN32: 80 | AP32: =A32 -> Edge / MKX / Flex /MKT- Oakville | AQ32: 66.0 | AS32: 80 | AV32: 80 | AY32: 80 | BB32: 80 | BE32: 80 | BH32: 80 | BK32: HOL | BN32: 64 | BQ32: 81 | BT32: 81 | BW32: 81 | BZ32: 81
A33: Matl. Prot. 2S (5x8) | V33: M) E) Edge/MKX
A34: Vehicle Schedule @ MPW | G34: Flex | P34: Flex | S34: Flex | V34: Flex | Y34: Flex | AE34: Flex | AH34: Flex | AK34: Flex | AN34: Flex | AP34: =A34 -> Vehicle Schedule @ MPW | AS34: Flex | AV34: Flex | AY34: Flex | BB34: Flex | BE34: Flex | BH34: Flex | BQ34: Flex | BT34: Flex | BW34: Flex | BZ34: Flex
A35: Taurus/Explorer - Chicago | B35: 66.3 | D35: 100 | E35: 30 | G35: 100 | H35: 20 | J35: 100 | K35: 20 | M35: 90 | N35: 30 | P35: 100 | Q35: 30 | S35: 100 | T35: 20 | V35: 100 | W35: 30 | Y35: 100 | Z35: 20 | AB35: 100 | AC35: 29 | AE35: 16 / 84 | AF35: 20 | AH35: 100 | AI35: 20 | AK35: 100 | AL35: 30 | AN35: 87 | AO35: 20 | AP35: =A35 -> Taurus/Explorer - Chicago | AQ35: 66.3 | AS35: 100 | AT35: 30 | AV35: 60 | AW35: 20 | AY35: 100 | AZ35: 30 | BB35: 100 | BC35: 30 | BE35: 100 | BF35: 20 | BH35: 99 | BI35: 10 | BK35: HOL | BN35: 78 | BO35: 30 | BQ35: 100 | BR35: 30 | BT35: 80 | BU35: 20 | BW35: 100 | BX35: 30 | BZ35: 100 | CA35: 30
A36: Matl. Prot. (3C) | AB36: D) Exp / Taurus | AE36: E) Exp / Taurus | AP36: Matl. Prot. (3C)
A37: Vehicle Schedule @ MPW | D37: Expl. | G37: Expl. | J37: Expl. | M37: Expl. | P37: Expl. | S37: Expl. | V37: Expl. | Y37: Expl. | AB37: Expl. | AK37: Expl. | AP37: Vehicle Schedule @ MPW | AS37: Expl. | AY37: Expl. | BB37: Expl. | BE37: Expl. | BQ37: Expl. | BW37: Expl. | BZ37: Expl.
A38: Motorhome - Det. Chassis Plant | B38: 10.2 | D38: 50 | G38: 50 | J38: 48 | M38: 39 | P38: 40 | S38: 40 | V38: 40 | Y38: 39 | AB38: 40 | AE38: 40 | AH38: 40 | AK38: 39 | AN38: 40 | AP38: =A38 -> Motorhome - Det. Chassis Plant | AQ38: 10.2 | AS38: 40 | AV38: 24 | AY38: 39 | BB38: 40 | BE38: 40 | BH38: 40 | BK38: HOL | BN38: 31 | BQ38: 40 | BT38: 32 | BW38: 40 | BZ38: 39
A39: Matl. Prot. 1S (5x8) | AP39: Matl. Prot. 1S (5x8)
A40: Vehicle Schedule @ MPW | AP40: =A40 -> Vehicle Schedule @ MPW
A41: F150 - Dearborn (3C) | B41: 65.2 | D41: 100 | E41: 20 | G41: 100 | H41: 20 | J41: 100 | K41: 20 | M41: 90 | N41: 20 | P41: 100 | Q41: 30 | S41: 100 | T41: 20 | V41: 100 | W41: 20 | Y41: 100 | Z41: 30 | AB41: 100 | AC41: 20 | AE41: 100 | AF41: 30 | AH41: 100 | AI41: 20 | AK41: 100 | AL41: 30 | AN41: 80 | AO41: 20 | AP41: =A41 -> F150 - Dearborn (3C) | AQ41: 65.2 | AS41: 100 | AT41: 30 | AV41: 70 | AW41: 20 | AY41: 100 | AZ41: 30 | BB41: 100 | BC41: 30 | BE41: 100 | BF41: 20 | BH41: 100 | BI41: 20 | BK41: HOL | BN41: 78 | BO41: 20 | BQ41: 100 | BR41: 20 | BT41: 80 | BU41: 20 | BW41: 100 | BX41: 20 | BZ41: 100 | CA41: 20
A42: Matl. Prot. | D42: 102 | G42: 101 | J42: 102 | P42: 102 | S42: 101 | V42: 101 | Y42: 101 | AB42: 102 | AE42: 101 | AH42: 101 | AK42: 101 | AN42: 91 | AP42: =A42 -> Matl. Prot. | AS42: 101 | AY42: 101 | BO42: 30 | BX42: 30
A43: Vehicle Schedule @ MPW | AP43: =A43 -> Vehicle Schedule @ MPW
A44: F150 - Kansas City (3C) | B44: 59.3 | D44: 100 | E44: 20 | G44: 100 | H44: 20 | J44: 100 | K44: 20 | M44: 80 | N44: 20 | P44: 100 | Q44: 30 | S44: 100 | T44: 20 | V44: 100 | W44: 20 | Y44: 100 | Z44: 30 | AB44: 100 | AC44: 20 | AE44: 100 | AF44: 30 | AH44: 100 | AI44: 20 | AK44: 100 | AL44: 30 | AN44: 79 | AO44: 20 | AP44: =A44 -> F150 - Kansas City (3C) | AQ44: 59.3 | AS44: 100 | AT44: 20 | AV44: 60 | AW44: 20 | AY44: 100 | AZ44: 20 | BB44: 100 | BC44: 20 | BE44: 100 | BF44: 20 | BH44: 100 | BI44: 20 | BK44: HOL | BN44: 78 | BO44: 20 | BQ44: 100 | BR44: 20 | BT44: 80 | BU44: 20 | BW44: 100 | BX44: 20 | BZ44: 100 | CA44: 20
A45: Matl. Prot. | E45: E) | Y45: 101 | AB45: 102 | AE45: 101 | AH45: 101 | AK45: 101 | AP45: Matl. Prot. | AS45: 101 | AY45: 101 | BB45: 101 | BE45: 102 | BO45: 30 | BR45: 30 | BX45: 30
A46: Vehicle Schedule @ MPW
A47: Transit - Kansas City (2S) | B47: 38.0 | D47: 96 | G47: 96 | J47: 79 / 1 | M47: 59 | P47: 80 | S47: 80 | V47: DW | Y47: 79 | AB47: 80 | AE47: 80 | AH47: 80 | AK47: 80 | AN47: 79 | AP47: =A47 -> Transit - Kansas City (2S) | AQ47: 38.0 | AS47: 80 | AV47: 60 | AY47: 80 | BB47: 80 | BE47: 80 | BH47: 80 | BK47: HOL | BN47: 58 | BQ47: 80 | BT47: 60 | BW47: 80 | BZ47: 80
A48: Matl. Prot. (5x8) (4x10 starts 8/28) | J48: M) | K48: E) | AP48: Matl. Prot (4x10) | BQ48: =80+16 -> 96 | BW48: 96
A49: Vehicle Schedule @ MPW | AP49: Vehicle Schedule @ MPW
B50: Allocation Week | D50: 30 | G50: 31 | J50: 32 | M50: 33 | P50: 34 | S50: 35 | V50: =S50+1 -> 36 | Y50: =V50+1 -> 37 | AB50: =Y50+1 -> 38 | AE50: =AB50+1 -> 39 | AH50: =AE50+1 -> 40 | AK50: =AH50+1 -> 41 | AN50: =AK50+1 -> 42 | AQ50: Allocation Week | AS50: =AN50+1 -> 43 | AV50: =AS50+1 -> 44 | AY50: =AV50+1 -> 45 | BB50: =AY50+1 -> 46 | BE50: =BB50+1 -> 47 | BH50: =BE50+1 -> 48 | BK50: 49 | BN50: =BK50+1 -> 50 | BQ50: =BN50+1 -> 51 | BT50: =BQ50+1 -> 52 | BW50: 1 | BZ50: =BW50+1 -> 2
CH66: LEGEND
CJ68: = Changes | CN68: = Balance out
CI69: FAC | CJ69: = Facilities down time | CM69: HOL | CN69: = Holiday
CI70: D/W | CJ70: = Down week | CN70: = Launch
CJ71: = Acceleration | CM71: VAC | CN71: = Vacation
CJ72: = Unique operating pattern
P73: FOOT NOTES:
P75: A) JPH increase | V75: F) | W75: Job #3 Launch | AD75: K) 5x8 operarting pattern launch
P76: B) Job #2 Launch | V76: G) | W76: 2018 MY Job#1 B/O | AD76: L) JPH Decrease
P77: C) 1-Shift Launch | V77: H) | W77: 2017 MY Launch | AD77: M) 2017 MY B/O | CG77: HOLIDAYS
P78: D) 2017MY Job#1 B/O | V78: I) | W78: 2-shift Launch | AD78: N) 4x10 operating pattern launch | CG78: U = U.S.
P79: E) 2018 MY Launch | V79: J) | W79: 3-crew Launch | AD79: O) Facility Changeover Acceleration Curve | CG79: C = Canada | CI79: H = Hermosillo
CG80: M = Mexico (all) | CI80: Q = Cuautitlan
P82: Balance Out Volumes Locked In for SHADED Production Weeks
P84: Plant Operating Patterns: | AE84: Vehicle Schedule @ MPW: identifies weekly op plan schedules at the 1-all VO-supply MPW capacity for the specified vehicle line. When condition is present, the vehicle line name will apear in the target production week.
P85: 4x10 - plant works four days a week, ten hours a day.
P86: 5x8 - plant works five days a week, eight hours a day. | CG86: Material Protection - Veh. (000)
P87: 3C - plant operates with three crews. | CG87: (EWA Months)
P88: 3S - plant operates with three shifts. | CG88: Car | CI88: August | CJ88: September | CK88: October | CL88: November | CM88: December | CN88: January | CO88: Tot
P89: 2S - plant operates with two shifts. | AE89: Shaded cells indicate weekly op plan schedules that exceed the 1-all VO-supply MPW capacity. | CG89: Fiesta | CI89: 0 | CJ89: 0 | CK89: 0 | CL89: 0 | CM89: 0 | CN89: 0 | CO89: =SUM(CI89:CN89) -> 0
P90: 1S - plant operates with one shift. | CG90: Fusion | CI90: 0 | CJ90: 0 | CK90: 0 | CL90: 0 | CM90: 0 | CN90: 0 | CO90: 0
CG91: MKZ | CI91: 0 | CJ91: 0 | CK91: 0 | CL91: 1 | CM91: 0.6 | CN91: 0 | CO91: 1.6
CG92: Taurus/Exp. | CI92: 0 | CJ92: 0 | CK92: 0 | CL92: 0 | CM92: 0 | CN92: 0 | CO92: 0
CG93: Focus/C-Max | CI93: 0 | CJ93: 0 | CK93: 0 | CL93: 0 | CM93: 0 | CN93: 0 | CO93: 0
CG94: Mustang/Conti | CI94: 0 | CJ94: 0 | CK94: 0 | CL94: 0 | CM94: 0 | CN94: 0 | CO94: 0
CG95: Total Car | CI95: =SUM(CI92:CI94) -> 0 | CJ95: 0 | CK95: 0 | CL95: 0 | CM95: 0 | CN95: =SUM(CN92:CN94) -> 0 | CO95: 0
CG96: Truck/SUV | CI96: =CI88 -> August | CJ96: September | CK96: October | CL96: November | CM96: December | CN96: January | CO96: =CO88 -> Tot
CG97: Transit | CI97: 0 | CJ97: 0 | CK97: 0 | CL97: 0 | CM97: 0 | CN97: 1.2 | CO97: =SUM(CI97:CN97) -> 1.2
CG98: F150 | CI98: 0 | CJ98: 0.4 | CK98: 1 | CL98: 0.6 | CM98: 0.2 | CN98: 3 | CO98: 5.2
CG99: Exp/Nav | CI99: 0 | CJ99: 0 | CK99: 0 | CL99: 0 | CM99: 0 | CN99: 1.88 | CO99: 1.88
CG100: Superduty | CI100: 0 | CJ100: 0 | CK100: 0 | CL100: 0 | CM100: 0 | CN100: 0 | CO100: 0
CG101: OHAP - E-Series/MD/SD | CI101: 0 | CJ101: 0 | CK101: 0 | CL101: 0 | CM101: 1.296 | CN101: 0 | CO101: 1.296
CG102: Louisville - Escape / MKC | CI102: 0 | CJ102: 0 | CK102: 1.4 | CL102: 1.4 | CM102: 2.2 | CN102: 0 | CO102: 5
CG103: Motorhome | CI103: 0 | CJ103: 0 | CK103: 0 | CL103: 0 | CM103: 0 | CN103: 0 | CO103: 0
CG104: Edge/MKX/Flex/MKT | CI104: 0 | CJ104: 0 | CK104: 0 | CL104: 0 | CM104: 0 | CN104: 0 | CO104: 0
CG105: Total Truck/SUV | CI105: =SUM(CI97:CI104) -> 0 | CJ105: 0.4 | CK105: 2.4 | CL105: =SUM(CL97:CL104) -> 2 | CM105: 3.696 | CN105: =SUM(CN97:CN104) -> 6.08 | CO105: 14.576
CF109: Plant Mixes | CH109: August | CI109: September | CJ109: October | CK109: November | CL109: December | CM109: January
CF110: Hermosillo | CG110: Fusion | CH110: 0.81 | CI110: 0.81 | CJ110: 0.81 | CK110: 0.81 | CL110: 0.81 | CM110: 0.85
CG111: MKZ | CH111: =100%-CH110 -> 0.19 | CI111: 0.19 | CJ111: 0.19 | CK111: =100%-CK110 -> 0.19 | CL111: =100%-CL110 -> 0.19 | CM111: 0.15
CF112: Kentucky Truck | CG112: Expedition | CH112: 0 | CI112: 0.01 | CJ112: 0.02 | CK112: 0.14 | CL112: 0.16 | CM112: 0.11
CG113: Navigator | CH113: 0 | CI113: 0.01 | CJ113: 0.06 | CK113: 0.04 | CL113: 0.05 | CM113: 0.05
CG114: Superduty | CH114: =1-CH112-CH113 -> 1 | CI114: 0.98 | CJ114: 0.92 | CK114: 0.82 | CL114: =1-CL112-CL113 -> 0.79 | CM114: =1-CM113-CM112 -> 0.84
A116: THIS DOCUMENT FOR REFERENCE ONLY. ALL PRODUCTION PLANNING SHOULD BE BASED UPON MATERIAL RELEASE REQUIREMENTS. | CF116: Louisville | CG116: Escape | CH116: 0.85 | CI116: 0.88 | CJ116: 0.86 | CK116: 0.86 | CL116: 0.86 | CM116: 0.86
CG117: MKC | CH117: =1-CH116 -> 0.15 | CI117: 0.12 | CJ117: 0.14 | CK117: =1-CK116 -> 0.14 | CL117: 0.14 | CM117: 0.14
CF118: Ohio | CG118: Econoline | CH118: =1-CH119-CH120 -> 0.78 | CI118: =1-CI119-CI120 -> 0.83 | CJ118: 0.77 | CK118: 0.79 | CL118: =1-CL119-CL120 -> 0.74 | CM118: =1-CM119-CM120 -> 0.69
CG119: Med. Duty | CH119: 0.11 | CI119: 0.1 | CJ119: 0.09 | CK119: 0.11 | CL119: 0.19 | CM119: 0.23
CG120: Super Duty | CH120: 0.11 | CI120: 0.07 | CJ120: 0.14 | CK120: 0.1 | CL120: 0.07 | CM120: 0.08
CF121: Flat Rock | CG121: Mustang | CH121: 0.74 | CI121: 0.8 | CJ121: 0.8 | CK121: 0.75 | CL121: 0.8 | CM121: 0.8
CG122: Continental | CH122: =1-CH121 -> 0.26 | CI122: 0.2 | CJ122: =1-CJ121 -> 0.2 | CK122: =1-CK121 -> 0.25 | CL122: 0.2 | CM122: 0.2
CF124: Michigan | CG124: Focus | CH124: 0.91 | CI124: 0.86 | CJ124: 0.89 | CK124: 0.95 | CL124: 0.934 | CM124: 0.95
CG125: C-Max | CH125: =1-CH124 -> 0.09 | CI125: 0.14 | CJ125: =1-CJ124 -> 0.11 | CK125: =1-CK124 -> 0.05 | CL125: 0.066 | CM125: 0.05
CF126: Oakville | CG126: Edge | CH126: 0.73 | CI126: 0.71 | CJ126: 0.63 | CK126: 0.61 | CL126: 0.6 | CM126: 0.77
CG127: MKX | CH127: 0.15 | CI127: 0.17 | CJ127: 0.26 | CK127: 0.27 | CL127: 0.27 | CM127: 0.13
CG128: Flex | CH128: 0.11 | CI128: 0.11 | CJ128: 0.11 | CK128: 0.11 | CL128: 0.11 | CM128: 0.09
CG129: MKT | CH129: 0.01 | CI129: 0.01 | CJ129: 0.01 | CK129: 0.01 | CL129: 0.02 | CM129: 0.01
CF130: Chicago | CG130: Taurus | CH130: =1-CH131 -> 0.12 | CI130: 0.12 | CJ130: 0.13 | CK130: 0.14 | CL130: 0.15 | CM130: =1-CM131 -> 0.17
CG131: Explorer | CH131: 0.88 | CI131: 0.88 | CJ131: 0.87 | CK131: 0.86 | CL131: 0.85 | CM131: 0.83 | CZ131: 3-Crew OT Shift Schedule
CF132: Dearborn Truck | CG132: Super Crew | CH132: 0.79 | CI132: 0.81 | CJ132: 0.78 | CK132: 0.81 | CL132: 0.81 | CM132: 0.84 | CZ132: 3-Crew Plants | DA132: 2015-01-05 | DC132: 2015-01-12 | DE132: 2015-01-19 | DG132: 2015-01-26 | DI132: 2015-02-02 | DK132: 2015-02-09 | DM132: 2015-02-16 | DO132: 2015-02-23 | DQ132: 2015-03-02 | DS132: 2015-03-09 | DU132: 2015-03-16 | DW132: 2015-03-23 | DY132: 2015-03-30 | EA132: 2015-04-06 | EC132: 2015-04-13 | EE132: 2015-04-20 | EG132: 2015-04-27 | EI132: 2015-05-04 | EK132: 2015-05-11 | EM132: 2015-05-18 | EO132: 2015-05-25 | EQ132: 2015-06-01 | ES132: 2015-06-08 | EU132: 2015-06-15 | EW132: 2015-06-22 | EY132: 2015-06-29 | FA132: 2015-07-06 | FC132: 2015-07-13 | FE132: 2015-07-20 | FG132: 2015-07-27 | FI132: 2015-08-03 | FK132: 2015-08-10 | FM132: 2015-08-17 | FO132: 2015-08-24 | FQ132: 2015-08-31 | FS132: 2015-09-07 | FU132: 2015-09-14 | FW132: 2015-09-21 | FY132: 2015-09-28 | GA132: 2015-10-05 | GC132: 2015-10-12 | GE132: 2015-10-19 | GG132: 2015-10-26 | GI132: 2015-11-02 | GK132: 2015-11-09 | GM132: 2015-11-16 | GO132: 2015-11-23 | GQ132: 2015-11-30 | GS132: 2015-12-07 | GU132: 2015-12-14 | GW132: 2015-12-21 | GY132: 2015-12-28 | HA132: 2016-01-04 | HC132: 2016-01-11 | HE132: 2016-01-18 | HG132: 2016-01-25 | HI132: 2016-02-01 | HK132: 2016-02-08 | HM132: 2016-02-15 | HO132: 2016-02-22 | HQ132: 2016-02-29 | HS132: 2016-03-07 | HU132: 2016-03-14 | HW132: 2016-03-21 | HY132: 2016-03-28 | IA132: 2016-04-04 | IC132: 2016-04-11 | IE132: 2016-04-18 | IG132: 2016-04-25 | II132: 2016-05-02 | IK132: 2016-05-09 | IM132: 2016-05-16 | IO132: 2016-05-23 | IQ132: 2016-05-30 | IS132: 2016-06-06 | IU132: 2016-06-13 | IW132: 2016-06-20 | IY132: 2016-06-27 | JA132: 2016-07-04 | JC132: 2016-07-11 | JE132: 2016-07-25 | JG132: 2016-08-01 | JI132: 2016-08-08 | JK132: 2016-08-15 | JM132: 2016-08-22 | JO132: 2016-08-29 | JQ132: 2016-09-05 | JS132: 2016-09-12 | JU132: 2016-09-19 | JW132: 2016-09-26 | JY132: 2016-10-03 | KA132: 2016-10-10 | KC132: 2016-10-24 | KE132: 2016-10-31 | KG132: 2016-11-07 | KI132: 2016-11-14 | KK132: 2016-11-21 | KM132: 2016-11-28 | KO132: 2016-12-05 | KQ132: 2016-12-12 | KS132: =KQ132+7 -> 2016-12-19 | KU132: =KS132+7 -> 2016-12-26 | KW132: 2017-01-02 | KY132: =KW132+7 -> 2017-01-09 | LA132: =KY132+7 -> 2017-01-16 | LC132: =LA132+7 -> 2017-01-23 | LE132: =LC132+7 -> 2017-01-30 | LG132: =LE132+7 -> 2017-02-06 | LI132: =LG132+7 -> 2017-02-13 | LK132: =LI132+7 -> 2017-02-20 | LM132: =LK132+7 -> 2017-02-27 | LO132: =LM132+7 -> 2017-03-06 | LQ132: =LO132+7 -> 2017-03-13 | LS132: =LQ132+7 -> 2017-03-20 | LU132: =LS132+7 -> 2017-03-27 | LW132: =LU132+7 -> 2017-04-03 | LY132: =LW132+7 -> 2017-04-10 | MA132: =LY132+7 -> 2017-04-17 | MC132: =MA132+7 -> 2017-04-24 | ME132: =MC132+7 -> 2017-05-01 | MG132: =ME132+7 -> 2017-05-08 | MI132: =MG132+7 -> 2017-05-15 | MK132: =MI132+7 -> 2017-05-22 | MM132: =MK132+7 -> 2017-05-29 | MO132: =MM132+7 -> 2017-06-05 | MQ132: =MO132+7 -> 2017-06-12 | MS132: =MQ132+7 -> 2017-06-19 | MU132: =MS132+7 -> 2017-06-26 | MW132: =MU132+7 -> 2017-07-03 | MY132: =MW132+7 -> 2017-07-10 | NA132: =MY132+7 -> 2017-07-17 | NC132: =NA132+7 -> 2017-07-24 | NE132: =NC132+7 -> 2017-07-31 | NG132: =NE132+7 -> 2017-08-07 | NI132: =NG132+7 -> 2017-08-14 | NK132: =NI132+7 -> 2017-08-21 | NM132: =NK132+7 -> 2017-08-28 | NO132: =NM132+7 -> 2017-09-04 | NQ132: =NO132+7 -> 2017-09-11 | NS132: =NQ132+7 -> 2017-09-18 | NU132: =NS132+7 -> 2017-09-25 | NW132: =NU132+7 -> 2017-10-02 | NY132: =NW132+7 -> 2017-10-09 | OA132: =NY132+7 -> 2017-10-16 | OC132: =OA132+7 -> 2017-10-23 | OE132: =OC132+7 -> 2017-10-30 | OG132: =OE132+7 -> 2017-11-06
CG133: Regular/Super Cab | CH133: 0.21 | CI133: 0.19 | CJ133: 0.22 | CK133: 0.19 | CL133: 0.19 | CM133: 0.16 | DA133: Sat | DB133: Sun | DC133: Sat | DD133: Sun | DE133: Sat | DF133: Sun | DG133: Sat | DH133: Sun | DI133: Sat | DJ133: Sun | DK133: Sat | DL133: Sun | DM133: Sat | DN133: Sun | DO133: Sat | DP133: Sun | DQ133: Sat | DR133: Sun | DS133: Sat | DT133: Sun | DU133: Sat | DV133: Sun | DW133: Sat | DX133: Sun | DY133: Sat | DZ133: Sun | EA133: Sat | EB133: Sun | EC133: Sat | ED133: Sun | EE133: Sat | EF133: Sun | EG133: Sat | EH133: Sun | EI133: Sat | EJ133: Sun | EK133: Sat | EL133: Sun | EM133: Sat | EN133: Sun | EO133: Sat | EP133: Sun | EQ133: Sat | ER133: Sun | ES133: Sat | ET133: Sun | EU133: Sat | EV133: Sun | EW133: Sat | EX133: Sun | EY133: Sat | EZ133: Sun | FA133: Sat | FB133: Sun | FC133: Sat | FD133: Sun | FE133: Sat | FF133: Sun | FG133: Sat | FH133: Sun | FI133: Sat | FJ133: Sun | FK133: Sat | FL133: Sun | FM133: Sat | FN133: Sun | FO133: Sat | FP133: Sun | FQ133: Sat | FR133: Sun | FS133: Sat | FT133: Sun | FU133: Sat | FV133: Sun | FW133: Sat | FX133: Sun | FY133: Sat | FZ133: Sun | GA133: Sat | GB133: Sun | GC133: Sat | GD133: Sun | GE133: Sat | GF133: Sun | GG133: Sat | GH133: Sun | GI133: Sat | GJ133: Sun | GK133: Sat | GL133: Sun | GM133: Sat | GN133: Sun | GO133: Sat | GP133: Sun | GQ133: Sat | GR133: Sun | GS133: Sat | GT133: Sun | GU133: Sat | GV133: Sun | GW133: Sat | GX133: Sun | GY133: Sat | GZ133: Sun | HA133: Sat | HB133: Sun | HC133: Sat | HD133: Sun | HE133: Sat | HF133: Sun | HG133: Sat | HH133: Sun | HI133: Sat | HJ133: Sun | HK133: Sat | HL133: Sun | HM133: Sat | HN133: Sun | HO133: Sat | HP133: Sun | HQ133: Sat | HR133: Sun | HS133: Sat | HT133: Sun | HU133: Sat | HV133: Sun | HW133: Sat | HX133: Sun | HY133: Sat | HZ133: Sun | IA133: Sat | IB133: Sun | IC133: Sat | ID133: Sun | IE133: Sat | IF133: Sun | IG133: Sat | IH133: Sun | II133: Sat | IJ133: Sun | IK133: Sat | IL133: Sun | IM133: Sat | IN133: Sun | IO133: Sat | IP133: Sun | IQ133: Sat | IR133: Sun | IS133: Sat | IT133: Sun | IU133: Sat | IV133: Sun | IW133: Sat | IX133: Sun | IY133: Sat | IZ133: Sun | JA133: Sat | JB133: Sun | JC133: Sat | JD133: Sun | JE133: Sat | JF133: Sun | JG133: Sat | JH133: Sun | JI133: Sat | JJ133: Sun | JK133: Sat | JL133: Sun | JM133: Sat | JN133: Sun | JO133: Sat | JP133: Sun | JQ133: Sat | JR133: Sun | JS133: Sat | JT133: Sun | JU133: Sat | JV133: Sun | JW133: Sat | JX133: Sun | JY133: Sat | JZ133: Sun | KA133: Sat | KB133: Sun | KC133: Sat | KD133: Sun | KE133: Sat | KF133: Sun | KG133: Sat | KH133: Sun | KI133: Sat | KJ133: Sun | KK133: Sat | KL133: Sun | KM133: Sat | KN133: Sun | KO133: Sat | KP133: Sun | KQ133: Sat | KR133: Sun | KS133: Sat | KT133: Sun | KU133: Sat | KV133: Sun | KW133: Sat | KX133: Sun | KY133: Sat | KZ133: Sun | LA133: Sat | LB133: Sun | LC133: Sat | LD133: Sun | LE133: Sat | LF133: Sun | LG133: Sat | LH133: Sun | LI133: Sat | LJ133: Sun | LK133: Sat | LL133: Sun | LM133: Sat | LN133: Sun | LO133: Sat | LP133: Sun | LQ133: Sat | LR133: Sun | LS133: Sat | LT133: Sun | LU133: Sat | LV133: Sun | LW133: Sat | LX133: Sun | LY133: Sat | LZ133: Sun | MA133: Sat | MB133: Sun | MC133: Sat | MD133: Sun | ME133: Sat | MF133: Sun | MG133: Sat | MH133: Sun | MI133: Sat | MJ133: Sun | MK133: Sat | ML133: Sun | MM133: Sat | MN133: Sun | MO133: Sat | MP133: Sun | MQ133: Sat | MR133: Sun | MS133: Sat | MT133: Sun | MU133: Sat | MV133: Sun | MW133: Sat | MX133: Sun | MY133: Sat | MZ133: Sun | NA133: Sat | NB133: Sun | NC133: Sat | ND133: Sun | NE133: Sat | NF133: Sun | NG133: Sat | NH133: Sun | NI133: Sat | NJ133: Sun | NK133: Sat | NL133: Sun | NM133: Sat | NN133: Sun | NO133: Sat | NP133: Sun | NQ133: Sat | NR133: Sun | NS133: Sat | NT133: Sun | NU133: Sat | NV133: Sun | NW133: Sat | NX133: Sun | NY133: Sat | NZ133: Sun | OA133: Sat | OB133: Sun | OC133: Sat | OD133: Sun | OE133: Sat | OF133: Sun | OG133: Sat | OH133: Sun
CF134: Kansas City | CG134: Supercrew | CH134: 0.7 | CI134: 0.69 | CJ134: 0.69 | CK134: 0.7 | CL134: 0.64 | CM134: 0.67 | DA134: 2015-01-10 | DB134: 2015-01-11 | DC134: 2015-01-17 | DD134: 2015-01-18 | DE134: 2015-01-24 | DF134: 2015-01-25 | DG134: 2015-01-31 | DH134: 2015-02-01 | DI134: 2015-02-07 | DJ134: 2015-02-08 | DK134: 2015-02-14 | DL134: 2015-02-15 | DM134: 2015-02-21 | DN134: 2015-02-22 | DO134: 2015-02-28 | DP134: 2015-03-01 | DQ134: 2015-03-07 | DR134: 2015-03-08 | DS134: 2015-03-14 | DT134: 2015-03-15 | DU134: 2015-03-21 | DV134: 2015-03-22 | DW134: 2015-03-28 | DX134: 2015-03-29 | DY134: 2015-04-04 | DZ134: 2015-04-05 | EA134: 2015-04-11 | EB134: 2015-04-12 | EC134: 2015-04-18 | ED134: 2015-04-19 | EE134: 2015-04-25 | EF134: 2015-04-26 | EG134: 2015-05-02 | EH134: 2015-05-03 | EI134: 2015-05-09 | EJ134: 2015-05-10 | EK134: 2015-05-16 | EL134: 2015-05-17 | EM134: 2015-05-23 | EN134: 2015-05-24 | EO134: 2015-05-30 | EP134: 2015-05-31 | EQ134: 2015-06-06 | ER134: 2015-06-07 | ES134: 2015-06-13 | ET134: 2015-06-14 | EU134: 2015-06-20 | EV134: 2015-06-21 | EW134: 2015-06-27 | EX134: 2015-06-28 | EY134: 2015-07-04 | EZ134: 2015-07-05 | FA134: 2015-07-11 | FB134: 2015-07-12 | FC134: 2015-07-18 | FD134: 2015-07-19 | FE134: 2015-07-25 | FF134: 2015-07-26 | FG134: 2015-08-01 | FH134: 2015-08-02 | FI134: 2015-08-08 | FJ134: 2015-08-09 | FK134: 2015-08-15 | FL134: 2015-08-16 | FM134: 2015-08-22 | FN134: 2015-08-23 | FO134: 2015-08-29 | FP134: 2015-08-30 | FQ134: 2015-09-05 | FR134: 2015-09-06 | FS134: 2015-09-12 | FT134: 2015-09-13 | FU134: 2015-09-19 | FV134: 2015-09-20 | FW134: 2015-09-26 | FX134: 2015-09-27 | FY134: 2015-10-03 | FZ134: 2015-10-04 | GA134: 2015-10-10 | GB134: 2015-10-11 | GC134: 2015-10-17 | GD134: 2015-10-18 | GE134: 2015-10-24 | GF134: 2015-10-25 | GG134: 2015-10-31 | GH134: 2015-11-01 | GI134: 2015-11-07 | GJ134: 2015-11-08 | GK134: 2015-11-14 | GL134: 2015-11-15 | GM134: 2015-11-21 | GN134: 2015-11-22 | GO134: 2015-11-28 | GP134: 2015-11-29 | GQ134: 2015-12-05 | GR134: 2015-12-06 | GS134: 2015-12-12 | GT134: 2015-12-13 | GU134: 2015-12-19 | GV134: 2015-12-20 | GW134: 2015-12-26 | GX134: 2015-12-27 | GY134: 2016-01-02 | GZ134: 2016-01-03 | HA134: 2016-01-09 | HB134: 2016-01-10 | HC134: 2016-01-16 | HD134: 2016-01-17 | HE134: 2016-01-23 | HF134: 2016-01-24 | HG134: 2016-01-30 | HH134: 2016-01-31 | HI134: 2016-02-06 | HJ134: 2016-02-07 | HK134: 2016-02-13 | HL134: 2016-02-14 | HM134: 2016-02-20 | HN134: 2016-02-21 | HO134: 2016-02-27 | HP134: 2016-02-28 | HQ134: 2016-03-05 | HR134: 2016-03-06 | HS134: 2016-03-12 | HT134: 2016-03-13 | HU134: 2016-03-19 | HV134: 2016-03-20 | HW134: 2016-03-26 | HX134: 2016-03-27 | HY134: 2016-04-02 | HZ134: 2016-04-03 | IA134: 2016-04-09 | IB134: 2016-04-10 | IC134: 2016-04-16 | ID134: 2016-04-17 | IE134: 2016-04-23 | IF134: 2016-04-24 | IG134: 2016-04-30 | IH134: 2016-05-01 | II134: 2016-05-07 | IJ134: 2016-05-08 | IK134: 2016-05-14 | IL134: 2016-05-15 | IM134: 2016-05-21 | IN134: 2016-05-22 | IO134: 2016-05-28 | IP134: 2016-05-29 | IQ134: 2016-06-04 | IR134: 2016-06-05 | IS134: 2016-06-11 | IT134: 2016-06-12 | IU134: 2016-06-18 | IV134: 2016-06-19 | IW134: 2016-06-25 | IX134: 2016-06-26 | IY134: 2016-07-02 | IZ134: 2016-07-03 | JA134: 2016-07-09 | JB134: 2016-07-10 | JC134: 2016-07-16 | JD134: 2016-07-17 | JE134: 2016-07-30 | JF134: 2016-07-31 | JG134: 2016-08-06 | JH134: 2016-08-07 | JI134: 2016-08-13 | JJ134: 2016-08-14 | JK134: 2016-08-20 | JL134: 2016-08-21 | JM134: 2016-08-27 | JN134: 2016-08-28 | JO134: 2016-09-03 | JP134: 2016-09-04 | JQ134: 2016-09-10 | JR134: 2016-09-11 | JS134: 2016-09-17 | JT134: 2016-09-18 | JU134: 2016-09-24 | JV134: 2016-09-25 | JW134: 2016-10-01 | JX134: 2016-10-02 | JY134: 2016-10-08 | JZ134: 2016-10-09 | KA134: 2016-10-15 | KB134: 2016-10-16 | KC134: 2016-10-29 | KD134: 2016-10-30 | KE134: 2016-11-05 | KF134: 2016-11-06 | KG134: 2016-11-12 | KH134: 2016-11-13 | KI134: 2016-11-19 | KJ134: 2016-11-20 | KK134: 2016-11-26 | KL134: 2016-11-27 | KM134: 2016-12-03 | KN134: 2016-12-04 | KO134: 2016-12-10 | KP134: 2016-12-11 | KQ134: 2016-12-17 | KR134: 2016-12-18 | KS134: 2016-12-24 | KT134: 2016-12-25 | KU134: 2016-12-31 | KV134: 2016-01-01 | KW134: 2017-01-07 | KX134: 2017-01-08 | KY134: =KW134+7 -> 2017-01-14 | KZ134: =KX134+7 -> 2017-01-15 | LA134: =KY134+7 -> 2017-01-21 | LB134: 2017-01-22 | LC134: =LA134+7 -> 2017-01-28 | LD134: =LB134+7 -> 2017-01-29 | LE134: =LC134+7 -> 2017-02-04 | LF134: =LD134+7 -> 2017-02-05 | LG134: =LE134+7 -> 2017-02-11 | LH134: =LF134+7 -> 2017-02-12 | LI134: =LG134+7 -> 2017-02-18 | LJ134: 2017-02-19 | LK134: 2017-02-25 | LL134: 2017-02-26 | LM134: 2017-03-04 | LN134: 2017-03-05 | LO134: 2017-03-11 | LP134: 2017-03-12 | LQ134: 2017-03-18 | LR134: 2017-03-19 | LS134: =LQ134+7 -> 2017-03-25 | LT134: =LR134+7 -> 2017-03-26 | LU134: =LS134+7 -> 2017-04-01 | LV134: =LT134+7 -> 2017-04-02 | LW134: =LU134+7 -> 2017-04-08 | LX134: =LV134+7 -> 2017-04-09 | LY134: =LW134+7 -> 2017-04-15 | LZ134: =LX134+7 -> 2017-04-16 | MA134: =LY134+7 -> 2017-04-22 | MB134: =LZ134+7 -> 2017-04-23 | MC134: =MA134+7 -> 2017-04-29 | MD134: =MB134+7 -> 2017-04-30 | ME134: =MC134+7 -> 2017-05-06 | MF134: 2017-05-07 | MG134: 2017-05-13 | MH134: 2017-05-14 | MI134: =MG134+7 -> 2017-05-20 | MJ134: =MH134+7 -> 2017-05-21 | MK134: =MI134+7 -> 2017-05-27 | ML134: =MJ134+7 -> 2017-05-28 | MM134: =MK134+7 -> 2017-06-03 | MN134: =ML134+7 -> 2017-06-04 | MO134: =MM134+7 -> 2017-06-10 | MP134: 2017-06-11 | MQ134: 2017-06-17 | MR134: 2017-06-18 | MS134: =MQ134+7 -> 2017-06-24 | MT134: 2017-06-25 | MU134: 2017-07-01 | MV134: 2017-07-02 | MW134: =MU134+7 -> 2017-07-08 | MX134: =MV134+7 -> 2017-07-09 | MY134: =MW134+7 -> 2017-07-15 | MZ134: =MX134+7 -> 2017-07-16 | NA134: =MY134+7 -> 2017-07-22 | NB134: =MZ134+7 -> 2017-07-23 | NC134: =NA134+7 -> 2017-07-29 | ND134: =NB134+7 -> 2017-07-30 | NE134: =NC134+7 -> 2017-08-05 | NF134: =ND134+7 -> 2017-08-06 | NG134: =NE134+7 -> 2017-08-12 | NH134: =NF134+7 -> 2017-08-13 | NI134: =NG134+7 -> 2017-08-19 | NJ134: =NH134+7 -> 2017-08-20 | NK134: =NI134+7 -> 2017-08-26 | NL134: 2017-08-27 | NM134: =NK134+7 -> 2017-09-02 | NN134: =NL134+7 -> 2017-09-03 | NO134: =NM134+7 -> 2017-09-09 | NP134: =NN134+7 -> 2017-09-10 | NQ134: =NO134+7 -> 2017-09-16 | NR134: =NP134+7 -> 2017-09-17 | NS134: =NQ134+7 -> 2017-09-23 | NT134: =NR134+7 -> 2017-09-24 | NU134: =NS134+7 -> 2017-09-30 | NV134: =NT134+7 -> 2017-10-01 | NW134: =NU134+7 -> 2017-10-07 | NX134: =NV134+7 -> 2017-10-08 | NY134: 2017-10-14 | NZ134: 2017-10-15 | OA134: =NY134+7 -> 2017-10-21 | OB134: =NZ134+7 -> 2017-10-22 | OC134: =OA134+7 -> 2017-10-28 | OD134: =OB134+7 -> 2017-10-29 | OE134: =OC134+7 -> 2017-11-04 | OF134: =OD134+7 -> 2017-11-05 | OG134: =OE134+7 -> 2017-11-11 | OH134: =OF134+7 -> 2017-11-12
CG135: Regular/Super Cab | CH135: 0.3 | CI135: 0.31 | CJ135: 0.31 | CK135: 0.3 | CL135: 0.36 | CM135: 0.33 | CZ135: Kentucky | DE135: X | DN135: X | DP135: X | DS135: X | DV135: X | DX135: X | EE135: X | EO135: X | ER135: X | FE135: X | FN135: X | FU135: X | GB135: X | GJ135: X | GQ135: X | HI135: X | HT135: X | HU135: X | IX135: X | JJ135: X | JK135: X | JN135: X | JX135: X | KA135: X | KD135: X | KE135: X | KH135: X | KI135: X | KL135: X | KM135: X | KP135: X | KQ135: X
CZ136: Louisville | DE136: X | DN136: X | DP136: X | DS136: X | DV136: X | DX136: X | EE136: X | EO136: X | ER136: X | FE136: X | FN136: X | FU136: X | GB136: X | GJ136: X | GQ136: X | HI136: X | HT136: X | HU136: X | IX136: X | MN136: X | MO136: X | MT136: X | NE136: X | NG136: X | NJ136: X | NS136: X | NX136: X | OB136: X
CZ137: Chicago | DM137: X | DR137: X | DT137: X | DU137: X | DW137: X | EB137: X | EE137: X | EL137: X | EO137: X | ER137: X | ET137: X | EU137: X | FD137: X | FE137: X | FJ137: X | FK137: X | FN137: X | FO137: X | FQ137: X | FT137: X | FV137: X | FW137: X | FZ137: X | GA137: X | GD137: X | GE137: X | GH137: X | GI137: X | GL137: X | GM137: X | GP137: X | GQ137: X | GT137: X | GU137: X | HB137: X | HC137: X | HF137: X | HG137: X | HI137: X | HL137: X | HN137: X | HO137: X | HR137: X | HS137: X | HV137: X | HZ137: X | IA137: X | ID137: X | IE137: X | IH137: X | II137: X | IL137: X | IM137: X | IP137: X | IR137: X | IU137: X | IX137: X | JF137: X | JH137: X | JI137: X | JL137: X | JN137: X | JQ137: X | JT137: X | JV137: X | JX137: X | JZ137: X | KB137: X | KD137: X | KE137: X | KH137: X | KJ137: X | KL137: X | KN137: X | KP137: X | KQ137: X | LD137: X | LH137: X | LL137: x | LP137: X | LT137: X | LX137: x | MD137: X | MJ137: X | MP137: X | MT137: X | NB137: X | NF137: X | NH137: X | NJ137: X | NP137: X | NR137: X | NV137: X | NZ137: X | OF137: X
CZ138: Dearborn | DW138: X | EB138: X | ED138: X | EF138: X | EI138: X | EU138: X | FB138: X | FC138: X | FF138: X | FG138: X | FJ138: X | FK138: X | FN138: X | FO138: X | FT138: X | FU138: X | FX138: X | FY138: X | GB138: X | GC138: X | GF138: X | GI138: X | GL138: X | GN138: X | GP138: X | GR138: X | GS138: X | GV138: X | HE138: X | HH138: X | HM138: X | HR138: X | HU138: X | JJ138: X | JM138: X | JO138: X | JR138: X | JS138: X | JU138: X | KN138: X | MB138: X | ME138: X | MJ138: X | MM138: X | MP138: X | MQ138: X | NQ138: X | NX138: X | OA138: X | OF138: X
CZ139: Kansas City* | ET139: X | EU139: X | FA139: X | FD139: X | FE139: X | FH139: X | FI139: X | FL139: X | FM139: X | FP139: X | FS139: X | FV139: X | FW139: X | FZ139: X | GA139: X | GD139: X | GE139: X | GH139: X | GI139: X | GL139: X | GM139: X | GP139: X | GQ139: X | GT139: X | GU139: X | HE139: X | HH139: X | HI139: X | HN139: X | HO139: X | HR139: X | HS139: X | HV139: X | KM139: X | KQ139: X | LT139: Super shifts not available pending approval of the E-Coat Cleaning Project* | MJ139: X | MO139: X | NC139: X | NF139: X | NT139: X | NW139: X | OB139: X | OE139: X
CZ140: NOTE: 3-Crew OT pattern is typically reflected by a 30-hour weekend schedule in the POPS report. Saturday OT shifts are worked by the B-crew (afternoon shift) and Sunday OT shifts are worked by A-Crew (day shift). C-crew's normal 40-hr work week includes a 10-hr shift on Saturday and Sunday. * Two month lead time after approved PO. Project requires downtime to complete. Alternative would require $50K funding per Super for accelerated E-Coat clean-out. (per GRL)
CE162: CUM Rollover Threshold
CE166: DOM | CF166: PLANT | CG166: VEHICLE | CH166: JPH | CI166: CUM Rollover Hours | CJ166: CUM Rollover Volume | CK166: Comments
CE167: Araiza | CF167: Cuautitlan | CG167: Fiesta | CH167: 35 | CI167: 2 | CJ167: =ROUNDDOWN(CH167*CI167,0) -> 70
CF168: Hermosillo | CG168: Fusion | CH168: 51 | CI168: 22.5 | CJ168: =ROUNDDOWN(CH168*CI168,0) -> 1147 | CK168: 17MY B/O
CG169: MKZ | CH169: 12 | CI169: 22.5 | CJ169: 270 | CK169: 17MY B/O
CE170: Bobnar | CF170: Kentucky Truck | CG170: Super Duty | CH170: 65.5 | CI170: 20 | CJ170: 1310 | CK170: 17MY B/O
CG171: Expedition | CH171: 0 | CI171: 20 | CJ171: 0
CG172: Navigator | CH172: 0 | CI172: 20 | CJ172: 0
CF173: Louisville | CG173: Escape | CH173: 61 | CI173: 20 | CJ173: 1220 | CK173: 17MY B/O
CG174: MKC | CH174: 10.8 | CI174: 20 | CJ174: 216 | CK174: 17MY B/O
CF175: Ohio | CG175: Econoline | CH175: 28 | CI175: 10 | CJ175: 280 | CK175: 17MY B/O
CG176: Med. Truck | CH176: 3.9 | CI176: 10 | CJ176: 39 | CK176: 17MY B/O
CG177: Super Duty | CH177: 4.1 | CI177: 10 | CJ177: 41 | CK177: 17MY B/O
CE178: Jowiski | CF178: Flat Rock | CG178: Mustang | CH178: 37 | CI178: 20 | CJ178: =ROUNDDOWN(CH178*CI178,0) -> 740 | CK178: 17MY B/O
CG179: Continental | CH179: 13 | CI179: 20 | CJ179: 260 | CK179: 17MY B/O
CF180: Michigan | CG180: Focus | CH180: 55.2 | CI180: 0 | CJ180: 0
CG181: C-Max | CH181: 5.3 | CI181: 0 | CJ181: 0
CF182: Oakville | CG182: Edge | CH182: 47.9 | CI182: 20 | CJ182: 958 | CK182: 17MY B/O
CG183: MKX | CH183: 9.9 | CI183: 20 | CJ183: 198 | CK183: 17MY B/O
CG184: Flex | CH184: 7.2 | CI184: 5 | CJ184: 36
CG185: MKT | CH185: 0.9 | CI185: 10 | CJ185: 9
CE186: Young | CF186: Chicago | CG186: Taurus | CH186: 7.3 | CI186: 2 | CJ186: 14
CG187: Explorer | CH187: 59 | CI187: 0.5 | CJ187: 29
CF188: Detroit | CG188: Motorhome | CH188: 10.2 | CI188: 0 | CJ188: 0
CF189: Dearborn Truck | CG189: Non-Crew | CH189: 13.5 | CI189: 2 | CJ189: 27
CG190: Crew | CH190: 51.7 | CI190: 2 | CJ190: 103
CF191: Kansas City | CG191: Non-Crew | CH191: 18 | CI191: 20 | CJ191: 360 | CK191: 17MY B/O
CG192: Crew | CH192: 41.3 | CI192: 20 | CJ192: 826 | CK192: 17MY B/O
CG193: Transit | CH193: 38 | CI193: 20 | CJ193: 760 | CK193: 17MY B/O
CE194: CUM Rollover (CRO) Function: The CRO Threshold determines how many units will hold in the next day's Schedule and Material Release due to a production loss at the plant. (NOTE: this applies to losses reported via DPR only. Losses reported via a Production Reduction/Shutdown Notice are processed differently). Special consideration of plant bull-pen capabilities should be included whn setting the CRO threshold to minimize risk of stocking material at outside holding areas. Each Op Plan analyst develops the CRO Threshold with input from the assembly plant. The CRO Threshold should reflect the plant's near-term makeup capability, based on current events within their schedule (IE: launch, balance out, open assembly/supply capacity). If managed correctly, the CRO Threshold minimizes the day-to-day manipulation of the Op Plan schedule. The CRO Threshold tool supports material release stability and reduced inventory levels.

Sheet Roll Weeks (hidden)
A1: 1. Go to W drive…"Reports"
A2: 2. Open desired file
A3: 3. Save file as new program release number (eg. 643-1, 643-2, etc.)
A4: 4. Go to "Tools", then "Macro"
A5: 5. Click on "ToplanRollWeeks"….buttons on right will become active.
A6: 6. Click on "Run"
B7: > | C7: Macro rolls weeks for all plants.
B8: > | C8: Check the calendar for holidays … note when appropriate
A9: 7. Revisions:
B10: > | C10: Delete all boxes for previous week's changes.
B11: > | C11: Delete any color from previous week's updates.
B12: > | C12: Delete footnotes that applied to the week that dropped off
A13: 8. Review plant mixes/material protection summaries … be sure beginning months are appropriate

Sheet 14 CY Downweeks (hidden)
B1: 2014 CY | O1: 2014 CY | P1: Memo:
B2: Jan | C2: Feb | D2: Mar | E2: Apr | F2: May | G2: Jun | H2: Jul | I2: Aug | J2: Sep | K2: Oct | L2: Nov | M2: Dec | N2: Oct-Dec | O2: Total 14 CY | P2: Mfg/Fac | Q2: Sales D/W | R2: Vac
A3: FRAP | B3: 3 | D3: 2 | E3: 1 | G3: 2 | I3: 1 | N3: =SUM(K3:M3) -> 0 | O3: =SUM(B3:M3) -> 9 | P3: 1 | Q3: 7 | R3: 1
N4: =SUM(K4:M4) -> 0 | O4: =SUM(B4:M4) -> 0
A5: Chicago | G5: 1 | N5: 0 | O5: 1 | R5: 1
N6: 0 | O6: 0
A7: Cuautitlan | C7: 1 | E7: 1 | F7: 1 | G7: 1 | H7: 1 | I7: 1 | J7: 1 | K7: 1 | N7: 1 | O7: 8 | Q7: 6 | R7: 2
N8: 0 | O8: 0
A9: Dearborn | B9: 1 | J9: 4 | N9: 0 | O9: 5 | P9: 5
N10: 0 | O10: 0
A11: Det. Chas. | F11: 1 | H11: 2 | N11: 0 | O11: 3 | Q11: 2 | R11: 2
N12: 0 | O12: 0
A13: Hermosillo | E13: 2 | H13: 3 | K13: 1 | L13: 1 | N13: 2 | O13: 7 | Q13: 5 | R13: 2
N14: 0 | O14: 0
A15: Kansas City - Transit | N15: 0 | O15: 0
A16: Kansas City - Trk | B16: 1 | N16: 0 | O16: 1 | P16: 1
N17: 0 | O17: 0
A18: Ky. Truck | B18: 1 | H18: 1 | N18: 0 | O18: 2 | R18: 1
N19: 0 | O19: 0
A20: Louisville | H20: 1 | N20: 0 | O20: 1 | R20: 1
N21: 0 | O21: 0
A22: Oakville | D22: 3 | E22: 1 | N22: 0 | O22: 4 | P22: 4
N23: 0 | O23: 0
A24: Ohio | H24: 5 | N24: 0 | O24: 5 | P24: 3 | R24: 2
N25: 0 | O25: 0
A26: St. Thomas | N26: 0 | O26: 0
N27: 0 | O27: 0
A28: Louisville | N28: 0 | O28: 0
N29: 0 | O29: 0
A30: MAP | C30: 1 | E30: 2 | F30: 2 | H30: 1 | I30: 2 | K30: 2 | L30: 1 | N30: 3 | O30: 11 | P30: 1 | Q30: 8 | R30: 2
N31: 0 | O31: 0
M32: Total Downweeks | N32: =SUM(N3:N31) -> 6 | O32: =SUM(O3:O31) -> 57 | P32: =SUM(P3:P31) -> 15 | Q32: =SUM(Q3:Q31) -> 28 | R32: =SUM(R3:R31) -> 14
L33: *Excludes Christmas shutdown

Sheet 15 CY Downweeks (hidden)
B1: 2015 CY | O1: 2015 CY | P1: Memo:
B2: Jan | C2: Feb | D2: Mar | E2: Apr | F2: May | G2: Jun | H2: Jul | I2: Aug | J2: Sep | K2: Oct | L2: Nov | M2: Dec | N2: Oct-Dec | O2: Total 15 CY | P2: Mfg/Fac | Q2: Sales D/W | R2: Vac
A3: FRAP | G3: 2 | H3: 2 | L3: 2 | N3: =SUM(K3:M3) -> 2 | O3: =SUM(B3:M3) -> 6 | P3: 2 | Q3: 2 | R3: 2
N4: =SUM(K4:M4) -> 0 | O4: =SUM(B4:M4) -> 0
A5: Chicago | H5: 1 | N5: 0 | O5: 1 | R5: 1
N6: 0 | O6: 0
A7: Cuautitlan | B7: 1 | C7: 1 | D7: 2 | H7: 1 | I7: 2 | J7: 2 | L7: 0 | M7: 1 | N7: 1 | O7: 10 | P7: 2 | Q7: 6 | R7: 2
N8: 0 | O8: 0
A9: Dearborn | H9: 1 | N9: 0 | O9: 1 | R9: 1
N10: 0 | O10: 0
A11: Det. Chas. | B11: 1 | C11: 1 | E11: 1 | G11: 1 | H11: 1 | I11: 1 | L11: 1* | M11: 1* | N11: 0 | O11: =SUM(B11:M11)+2 -> 8 | P11: 2 | Q11: 4 | R11: 2 | S11: *Constraint
N12: 0 | O12: 0
A13: Hermosillo | B13: 1 | F13: 0.5 | H13: 2 | L13: 1 | N13: 1 | O13: 4.5 | Q13: 5 | R13: 2 | S13: May down week partial
N14: 0 | O14: 0
A15: Kansas City - Transit | C15: 1 | H15: 2 | K15: 1 | N15: 1 | O15: 4 | Q15: 3 | R15: 2
A16: Kansas City - Trk | B16: 4 | C16: 2 | H16: 1 | N16: 0 | O16: 7 | P16: 6 | R16: 1
N17: 0 | O17: 0
A18: Ky. Truck | H18: 3 | N18: 0 | O18: 3 | P18: 1 | R18: 2
N19: 0 | O19: 0
A20: Louisville | H20: 1 | N20: 0 | O20: 1 | R20: 1
N21: 0 | O21: 0
A22: Oakville | B22: 2 | N22: 0 | O22: 2 | P22: 2
N23: 0 | O23: 0
A24: Ohio | H24: 2 | N24: 0 | O24: 2 | R24: 2
N25: 0 | O25: 0
A26: St. Thomas | N26: 0 | O26: 0
N27: 0 | O27: 0
A28: Louisville | N28: 0 | O28: 0
N29: 0 | O29: 0
A30: MAP | B30: 1 | E30: 1 | G30: 1 | H30: 1 | K30: 2 | N30: 2 | O30: 6 | Q30: 4 | R30: 2
N31: 0 | O31: 0
M32: Total Downweeks | N32: =SUM(N3:N31) -> 7 | O32: =SUM(O3:O31) -> 55.5 | P32: =SUM(P3:P31) -> 15 | Q32: =SUM(Q3:Q31) -> 24 | R32: =SUM(R3:R31) -> 20
L33: *Excludes Christmas shutdown
L34: *Does not include material protected down weeks

Sheet 16 CY Downweeks (hidden)
B1: 2016 CY | O1: 2016 CY | P1: Memo:
B2: Jan | C2: Feb | D2: Mar | E2: Apr | F2: May | G2: Jun | H2: Jul | I2: Aug | J2: Sep | K2: Oct | L2: Nov | M2: Dec | N2: Oct-Dec | O2: Total 16 CY | P2: Mfg/Fac | Q2: Sales D/W | R2: Vac
A3: FRAP | H3: 1 | I3: 1 | K3: 1 | N3: =SUM(K3:M3) -> 1 | O3: =SUM(B3:M3) -> 3 | P3: 1 | R3: 2
N4: =SUM(K4:M4) -> 0 | O4: =SUM(B4:M4) -> 0
A5: Chicago | H5: 1 | N5: 0 | O5: 1 | R5: 1
N6: 0 | O6: 0
A7: Cuautitlan | C7: 1 | D7: 1 | E7: 1 | F7: 2 | G7: 2 | H7: 1 | I7: 1 | J7: 1 | K7: 1 | L7: 1 | N7: 2 | O7: 12 | P7: 1 | Q7: 8 | R7: 4
N8: 0 | O8: 0
A9: Dearborn | N9: 0 | O9: 0
N10: 0 | O10: 0
A11: Det. Chas. | B11: 1 | H11: 1 | I11: 1 | K11: 1 | L11: 1 | M11: 1 | N11: 3 | O11: 6 | Q11: 1 | R11: 2
N12: 0 | O12: 0
A13: Hermosillo | F13: 1 | H13: 1 | I13: 1 | J13: 2 | K13: 2 | L13: 4** | N13: 2 | O13: =SUM(B13:M13)&"/4**" -> 7/4** | Q13: 5/4** | R13: 2
N14: 0 | O14: 0
A15: Kansas City - Transit | H15: 2 | N15: 0 | O15: 2 | R15: 2
A16: Kansas City - Trk | F16: 1 | I16: 2** | J16: 1** | K16: 4** | L16: 1** | N16: 0 | O16: 1/8** | Q16: 1/8**
N17: 0 | O17: 0
A18: Ky. Truck | H18: 1 | N18: 0 | O18: 1 | R18: 1
N19: 0 | O19: 0
A20: Louisville | H20: 1 | K20: 1 | L20: 1 | N20: 2 | O20: 3 | Q20: 2 | R20: 1
N21: 0 | O21: 0
A22: Oakville | H22: 1 | N22: 0 | O22: 1 | R22: 1
N23: 0 | O23: 0
A24: Ohio | G24: 1 | H24: 1 | N24: 0 | O24: 2 | R24: 2
N25: 0 | O25: 0
A26: St. Thomas | N26: 0 | O26: 0
N27: 0 | O27: 0
A28: Louisville | N28: 0 | O28: 0
N29: 0 | O29: 0
A30: MAP | D30: 1 | H30: 2 | I30: 2 | J30: 2 | K30: 2 | M30: 2 | N30: 4 | O30: 11 | Q30: 9 | R30: 2
N31: 0 | O31: 0
M32: Total Downweeks | N32: =SUM(N3:N31) -> 14 | O32: =SUM(O3:O31) -> 42
L33: *Excludes Christmas shutdown
L34: *Does not include material protected down weeks
L35: ** Kansas City Trk & Hermosillo - indicates downcrew weeks

Sheet OP LTR
A1: Recap of North American Operating Plan Changes
A2: ='OP PLAN'!A2 -> 2017-08-14
A3: Fiesta
A4: Cuautitlan
A7: Fusion / MKZ
A8: Hermosillo | C8: Variance the weeks of 1/1 (+35 hrs), 1/8 (+22 hrs), 1/15 (-30 hrs), 1/22 (+29 hrs) due to resetting 18CY back to 3 shift plan
A11: Exp/Nav/Superduty
A12: Kentucky Truck
A15: Escape / MKC
A16: Louisville
A19: Econoline / Med Duty / Super Duty
A20: Ohio
A23: Mustang / Conti
A24: Flat Rock
A27: Focus / C-Max
A28: Michigan
C29: Loss recovery of 464 units on 8/10 -- +10 units per day from 8/14 through 10/5. (Overspeed) Exceptions of 11 units per day on 8/15, 8/29, 9/6 and 9/19. 10/3, +60 units (1 hr), 11/6 +50 units (.83 hr), 11/14 +60 units (1hr),12/5 +60 units (1hr), 2018 MY MP2 slides 210 units on 10/9.
A31: Edge/MKX/Flex/MKT
A32: Oakville | C32: Variance the weeks of 8/21-12/18 (-1 hrs/wk) (-20hrs total)
A35: Taurus / MKS/ Explorer
A36: Chicago | C36: Variance the week of 10/30 (+8 hrs) & 11/6 (+7 hrs) due to production loss make-up
A39: MOTORHOME
A40: DCP | C40: Recalendarized the CIWG meetings from the weeks of 11/6 and 12/4 to the weeks of 10/30 and 11/27.
A43: F-Series U/8500
A44: Dearborn Truck
A48: Kansas City
C49: Variance w/o 9/11 (+10hrs) due to adding a super shift
C50: Variance w/o 9/18 (-10hrs) due to removing a super shift
A54: Transit
A55: Kansas City | C55: Variance w/o 9/25 (-80hrs) - added sales DW
C56: Variance in current week due to removing 61 units from 8/11.
C57: Spread the 61 units from 8/11 into the days of 8/14, 8/21, 8/22 and 8/23, per plant request.
CH126: 0.73

Sheet 17 CY Downweeks
B1: 2017 CY | O1: 2017 CY | P1: Memo:
B2: Jan | C2: Feb | D2: Mar | E2: Apr | F2: May | G2: Jun | H2: Jul | I2: Aug | J2: Sep | K2: Oct | L2: Nov | M2: Dec | N2: Oct-Dec | O2: Total 17 CY | P2: Mfg/Fac | Q2: Sales D/W | R2: Vac
A3: FRAP | H3: 2 | J3: 1 | L3: 1 | N3: =SUM(K3:M3) -> 1 | O3: =SUM(B3:M3) -> 4 | P3: 0 | Q3: 2 | R3: 2
N4: =SUM(K4:M4) -> 0 | O4: =SUM(B4:M4) -> 0
A5: Chicago | H5: 2 | N5: 0 | O5: 2 | R5: 2
N6: 0 | O6: 0
A7: Cuautitlan | H7: 2 | I7: 1 | J7: 1 | K7: 1 | L7: 1 | N7: 2 | O7: 6 | Q7: 4 | R7: 2
N8: 0 | O8: 0
A9: Dearborn | N9: 0 | O9: 0 | R9: 2
N10: 0 | O10: 0
A11: Det. Chas. | H11: 1 | I11: 1 | N11: 0 | O11: 2 | R11: 2
N12: 0 | O12: 0
A13: Hermosillo | B13: 2** | C13: 1.8** | D13: 0.2** | F13: 1** | G13: 1+1** | H13: 1+1** | I13: 1** | J13: 2** | K13: 1.5** | L13: 2** | M13: 1.5** | N13: 0 | O13: 17 | Q13: 15 | R13: 2
N14: 0 | O14: 0
A15: Kansas City - Transit | B15: 1 | J15: 1 | N15: 0 | O15: 2 | R15: 2
A16: Kansas City - Trk | B16: 1 | C16: 1*** | N16: 0 | O16: 1 | R16: 2
N17: 0 | O17: 0
A18: Ky. Truck | H18: 2 | N18: 0 | O18: 2 | R18: 2
N19: 0 | O19: 0
A20: Louisville | H20: 1 | N20: 0 | O20: 1 | R20: 1
N21: 0 | O21: 0
A22: Oakville | H22: 2 | N22: 0 | O22: 2 | R22: 2
N23: 0 | O23: 0
A24: Ohio | H24: 2 | N24: 0 | O24: 2 | R24: 2
N25: 0 | O25: 0
A26: St. Thomas | N26: 0 | O26: 0
N27: 0 | O27: 0
A28: Louisville | N28: 0 | O28: 0
N29: 0 | O29: 0
A30: MAP | B30: 2 | C30: 2 | D30: 1 | H30: 2 | I30: 1 | J30: 1 | L30: 1 | M30: 1 | N30: 2 | O30: 11 | P30: 2 | Q30: 7 | R30: 2
N31: 0 | O31: 0
M32: Total Downweeks | N32: =SUM(N3:N31) -> 5 | O32: =SUM(O3:O31) -> 52
L33: *Excludes Christmas shutdown
L34: *Does not include material protected down weeks
L35: **Hermosillo - down days scheduled totaling to 4.4 weeks in 1 and 2Q; totaling to 7.5 weeks in 3 and 4Q.
